[Event "*** MasterClass Titled Tuesday Blitz"]
[Site "Chess.com"]
[Date "2017.08.01"]
[Round "2"]
[White "TregubovP"]
[Black "jcibarra"]
[Result "1-0"]
[WhiteElo "2482"]
[BlackElo "2645"]
[TimeControl "180+2"]
[EndTime "13:25:50 PDT"]
[Termination "TregubovP won by resignation"]

1. d4 {[%clk 0:03:01.9]} 1... Nf6 {[%clk 0:02:57.4]} 2. c4 {[%clk 0:03:02.6]}
2... d6 {[%clk 0:02:58.4]} 3. Nf3 {[%clk 0:03:03]} 3... g6 {[%clk 0:02:58.7]} 4.
g3 {[%clk 0:03:03.9]} 4... Bg7 {[%clk 0:02:59.5]} 5. Bg2 {[%clk 0:03:05.6]} 5...
O-O {[%clk 0:03:00.7]} 6. O-O {[%clk 0:03:07.3]} 6... Bf5 {[%clk 0:03:02.3]} 7.
Ne1 {[%clk 0:02:47.7]} 7... Nc6 {[%clk 0:02:57.5]} 8. Nc3 {[%clk 0:02:48.2]}
8... Na5 {[%clk 0:02:55.6]} 9. e4 {[%clk 0:02:42.7]} 9... Bg4 {[%clk 0:02:56.2]}
10. f3 {[%clk 0:02:39.2]} 10... Bd7 {[%clk 0:02:56.5]} 11. Qe2 {[%clk
0:02:38.2]} 11... c5 {[%clk 0:02:49.1]} 12. dxc5 {[%clk 0:02:38.8]} 12... Be6
{[%clk 0:02:48.3]} 13. Nd5 {[%clk 0:02:34.1]} 13... dxc5 {[%clk 0:02:22]} 14.
Be3 {[%clk 0:02:11.4]} 14... Rc8 {[%clk 0:02:14]} 15. Rd1 {[%clk 0:02:11.2]}
15... Nxd5 {[%clk 0:02:02.4]} 16. exd5 {[%clk 0:01:53.9]} 16... Bd7 {[%clk
0:01:52.9]} 17. b3 {[%clk 0:01:55]} 17... a6 {[%clk 0:01:48.4]} 18. Nd3 {[%clk
0:01:54.1]} 18... b6 {[%clk 0:01:42.8]} 19. f4 {[%clk 0:01:55.3]} 19... Nb7
{[%clk 0:01:43.2]} 20. Ne5 {[%clk 0:01:54.7]} 20... Qc7 {[%clk 0:01:34.9]} 21.
Bf2 {[%clk 0:01:43.5]} 21... Nd6 {[%clk 0:01:33]} 22. Rfe1 {[%clk 0:01:43.5]}
22... Rfe8 {[%clk 0:01:33.8]} 23. Qf1 {[%clk 0:01:36.6]} 23... Bf5 {[%clk
0:01:30.2]} 24. g4 {[%clk 0:01:31.1]} 24... Bd7 {[%clk 0:01:29.5]} 25. h3 {[%clk
0:01:32]} 25... b5 {[%clk 0:01:11.1]} 26. Bg3 {[%clk 0:01:31.5]} 26... Qa7
{[%clk 0:01:09.9]} 27. Kh1 {[%clk 0:01:32.1]} 27... a5 {[%clk 0:01:09.7]} 28.
Nc6 {[%clk 0:01:23.2]} 28... Bxc6 {[%clk 0:01:08.5]} 29. dxc6 {[%clk 0:01:24.4]}
29... bxc4 {[%clk 0:01:06.7]} 30. bxc4 {[%clk 0:01:24.5]} 30... Qa6 {[%clk
0:01:08.2]} 31. f5 {[%clk 0:01:15.1]} 31... Bd4 {[%clk 0:00:57.6]} 32. f6 {[%clk
0:01:03.3]} 32... e5 {[%clk 0:00:54.8]} 33. Bd5 {[%clk 0:00:57.8]} 33... Rxc6
{[%clk 0:00:52.8]} 34. Bxc6 {[%clk 0:00:56]} 34... Qxc6+ {[%clk 0:00:53.4]} 35.
Qg2 {[%clk 0:00:57.6]} 35... Qxg2+ {[%clk 0:00:53]} 36. Kxg2 {[%clk 0:00:57.8]}
36... Nxc4 {[%clk 0:00:54.9]} 37. Bf2 {[%clk 0:00:56.1]} 37... h6 {[%clk
0:00:49.5]} 38. Bxd4 {[%clk 0:00:56.1]} 38... cxd4 {[%clk 0:00:50.6]} 39. Rxd4
{[%clk 0:00:57.2]} 39... Rc8 {[%clk 0:00:34.6]} 40. Rde4 {[%clk 0:00:58]} 40...
Nd6 {[%clk 0:00:26.9]} 41. Rxe5 {[%clk 0:00:58.3]} 41... g5 {[%clk 0:00:25.9]}
42. Rxa5 {[%clk 0:00:50.4]} 42... Rc2+ {[%clk 0:00:23.4]} 43. Kf3 {[%clk
0:00:44.8]} 43... Rc3+ {[%clk 0:00:24.7]} 44. Kg2 {[%clk 0:00:45]} 44... Rc2+
{[%clk 0:00:25.2]} 45. Kg1 {[%clk 0:00:43.5]} 45... Kh7 {[%clk 0:00:24.4]} 46.
Rd5 {[%clk 0:00:38.4]} 46... Rc6 {[%clk 0:00:15.6]} 47. a4 {[%clk 0:00:38.5]}
47... Kg6 {[%clk 0:00:16.4]} 48. a5 {[%clk 0:00:39.1]} 48... Kxf6 {[%clk
0:00:12.7]} 49. Ra1 {[%clk 0:00:39.9]} 49... Ra6 {[%clk 0:00:13.8]} 50. Kf2
{[%clk 0:00:41.1]} 50... Ke6 {[%clk 0:00:14.1]} 51. Rd4 {[%clk 0:00:38]} 51...
Ke5 {[%clk 0:00:14.2]} 52. Ke3 {[%clk 0:00:38]} 52... f5 {[%clk 0:00:14.2]} 53.
Kd3 {[%clk 0:00:38.8]} 53... f4 {[%clk 0:00:15.1]} 54. Re1+ {[%clk 0:00:35.7]}
54... Kf6 {[%clk 0:00:16.1]} 55. Rd5 {[%clk 0:00:37.3]} 55... Nb7 {[%clk
0:00:17.3]} 56. Rf5+ {[%clk 0:00:36.3]} 56... Kg6 {[%clk 0:00:17.8]} 57. Ra1
{[%clk 0:00:37.4]} 57... Nd6 {[%clk 0:00:16.7]} 58. Rd5 {[%clk 0:00:39]} 58...
Nf7 {[%clk 0:00:16.9]} 59. Kc4 {[%clk 0:00:39.6]} 59... Kf6 {[%clk 0:00:17.4]}
60. Kb5 {[%clk 0:00:40.4]} 60... Ra8 {[%clk 0:00:16.6]} 61. a6 {[%clk
0:00:41.7]} 61... Ke6 {[%clk 0:00:18.3]} 62. Rd2 {[%clk 0:00:37.1]} 62... Nd6+
{[%clk 0:00:18.1]} 63. Kb4 {[%clk 0:00:34.6]} 63... Rb8+ {[%clk 0:00:18.3]} 64.
Ka4 {[%clk 0:00:35.7]} 64... Ra8 {[%clk 0:00:16.3]} 65. Re1+ {[%clk 0:00:36.6]}
65... Kd7 {[%clk 0:00:16.4]} 66. Ka5 {[%clk 0:00:38.2]} 66... Rb8 {[%clk
0:00:11.7]} 67. Red1 {[%clk 0:00:37.8]} 67... Rb5+ {[%clk 0:00:10.8]} 68. Ka4
{[%clk 0:00:38.9]} 68... Rb6 {[%clk 0:00:12.7]} 69. Rxd6+ {[%clk 0:00:40.3]}
69... Rxd6 {[%clk 0:00:13.9]} 70. Rxd6+ {[%clk 0:00:40.4]} 70... Kxd6 {[%clk
0:00:15.8]} 71. a7 {[%clk 0:00:41.8]} 71... Kc7 {[%clk 0:00:16.3]} 72. a8=Q
{[%clk 0:00:41.6]} 1-0

[Event "*** MasterClass Titled Tuesday Blitz"]
[Site "Chess.com"]
[Date "2017.08.01"]
[Round "2"]
[White "beastfromweast"]
[Black "Cryptochess"]
[Result "0-1"]
[WhiteElo "2280"]
[BlackElo "2471"]
[TimeControl "180+2"]
[EndTime "13:26:09 PDT"]
[Termination "Cryptochess won by resignation"]

1. d4 {[%clk 0:03:01.9]} 1... Nf6 {[%clk 0:03:00.1]} 2. Nf3 {[%clk 0:03:03]}
2... c5 {[%clk 0:03:00.8]} 3. d5 {[%clk 0:03:04.2]} 3... b5 {[%clk 0:03:01.4]}
4. c4 {[%clk 0:03:04.9]} 4... bxc4 {[%clk 0:02:59.5]} 5. Nc3 {[%clk 0:03:05.1]}
5... d6 {[%clk 0:03:00.1]} 6. e4 {[%clk 0:03:05.4]} 6... g6 {[%clk 0:03:00.9]}
7. Nd2 {[%clk 0:02:58.9]} 7... Bg7 {[%clk 0:03:01]} 8. Nxc4 {[%clk 0:02:59.9]}
8... O-O {[%clk 0:03:01.6]} 9. Be2 {[%clk 0:02:52.8]} 9... Ba6 {[%clk
0:02:58.5]} 10. Be3 {[%clk 0:02:50.2]} 10... Nbd7 {[%clk 0:02:58.4]} 11. O-O
{[%clk 0:02:48.9]} 11... Nb6 {[%clk 0:02:58.6]} 12. b3 {[%clk 0:02:26.1]} 12...
Nxc4 {[%clk 0:02:37.9]} 13. Bxc4 {[%clk 0:02:24.8]} 13... Qa5 {[%clk 0:02:35.1]}
14. Qd3 {[%clk 0:02:22]} 14... Bxc4 {[%clk 0:02:32]} 15. Qxc4 {[%clk 0:02:19.5]}
15... Ng4 {[%clk 0:02:30.4]} 16. Bd2 {[%clk 0:02:17.7]} 16... Qb4 {[%clk
0:01:52.9]} 17. f4 {[%clk 0:02:04.9]} 17... Bd4+ {[%clk 0:01:48.5]} 18. Kh1
{[%clk 0:02:03.7]} 18... Nf2+ {[%clk 0:01:46.8]} 19. Rxf2 {[%clk 0:02:05.1]}
19... Bxf2 {[%clk 0:01:47.1]} 20. Qe2 {[%clk 0:02:02.7]} 20... Qd4 {[%clk
0:01:04.1]} 21. g3 {[%clk 0:01:29.1]} 21... c4 {[%clk 0:00:21.4]} 22. b4 {[%clk
0:00:48]} 22... a5 {[%clk 0:00:16.2]} 23. b5 {[%clk 0:00:47.8]} 23... Qb6 {[%clk
0:00:16.1]} 24. Qxc4 {[%clk 0:00:40.3]} 24... Rac8 {[%clk 0:00:16.6]} 25. Qd3
{[%clk 0:00:37.1]} 25... Bd4 {[%clk 0:00:17.8]} 26. Na4 {[%clk 0:00:36.4]} 26...
Qa7 {[%clk 0:00:18.8]} 27. Rb1 {[%clk 0:00:36.2]} 27... Bb6 {[%clk 0:00:19.5]}
28. Bc3 {[%clk 0:00:30.7]} 28... Rc7 {[%clk 0:00:19.2]} 29. Nxb6 {[%clk
0:00:30.8]} 29... Qxb6 {[%clk 0:00:20]} 30. Bd4 {[%clk 0:00:32.3]} 30... Qb7
{[%clk 0:00:21.1]} 31. Bc3 {[%clk 0:00:30.9]} 31... Rfc8 {[%clk 0:00:21.1]} 32.
Bxa5 {[%clk 0:00:31.9]} 32... Rc2 {[%clk 0:00:22.4]} 33. h4 {[%clk 0:00:23.9]}
33... Rxa2 {[%clk 0:00:22.6]} 34. h5 {[%clk 0:00:25.2]} 34... Rxa5 {[%clk
0:00:22.2]} 35. h6 {[%clk 0:00:25.7]} 35... f6 {[%clk 0:00:22]} 36. e5 {[%clk
0:00:22.4]} 36... fxe5 {[%clk 0:00:22.8]} 37. fxe5 {[%clk 0:00:24.3]} 37... dxe5
{[%clk 0:00:23.8]} 38. Qe4 {[%clk 0:00:22.6]} 38... Qd7 {[%clk 0:00:24.3]} 39.
Kh2 {[%clk 0:00:21.3]} 39... Ra2+ {[%clk 0:00:25]} 40. Kg1 {[%clk 0:00:21.5]}
40... Rcc2 {[%clk 0:00:25.2]} 41. Qxe5 {[%clk 0:00:21.6]} 41... Rg2+ {[%clk
0:00:25.1]} 42. Kf1 {[%clk 0:00:22.9]} 42... Raf2+ {[%clk 0:00:24.5]} 43. Ke1
{[%clk 0:00:22.9]} 43... Re2+ {[%clk 0:00:25.2]} 44. Qxe2 {[%clk 0:00:24.3]}
44... Rxe2+ {[%clk 0:00:26.3]} 45. Kxe2 {[%clk 0:00:26.2]} 45... Qxd5 {[%clk
0:00:27.3]} 46. Ke3 {[%clk 0:00:21.7]} 46... Qg5+ {[%clk 0:00:26.2]} 47. Kd4
{[%clk 0:00:21.8]} 47... Qg4+ {[%clk 0:00:25.5]} 48. Kc3 {[%clk 0:00:21.6]}
48... Qxg3+ {[%clk 0:00:25.5]} 49. Kb4 {[%clk 0:00:22.1]} 49... Qd6+ {[%clk
0:00:23.2]} 50. Ka5 {[%clk 0:00:21.4]} 50... Qc5 {[%clk 0:00:20.9]} 51. Ka6
{[%clk 0:00:20]} 51... Qa3+ {[%clk 0:00:20.1]} 52. Kb7 {[%clk 0:00:19]} 52...
Qf3+ {[%clk 0:00:19.2]} 53. Ka6 {[%clk 0:00:17.5]} 53... Qa3+ {[%clk 0:00:19.1]}
54. Kb7 {[%clk 0:00:18.5]} 54... Qd3 {[%clk 0:00:19.6]} 55. Rb4 {[%clk
0:00:17.4]} 55... Qd2 {[%clk 0:00:18.4]} 56. Rb1 {[%clk 0:00:16.1]} 56... Qd5+
{[%clk 0:00:18.2]} 57. Kb6 {[%clk 0:00:15]} 57... g5 {[%clk 0:00:18.2]} 58. Rb4
{[%clk 0:00:11.4]} 58... e5 {[%clk 0:00:14.2]} 59. Ka5 {[%clk 0:00:11.5]} 59...
Qa8+ {[%clk 0:00:13.8]} 60. Kb6 {[%clk 0:00:12.9]} 60... e4 {[%clk 0:00:14.5]}
61. Kc5 {[%clk 0:00:12.3]} 61... e3 {[%clk 0:00:14.9]} 62. b6 {[%clk 0:00:13.1]}
62... e2 {[%clk 0:00:15.3]} 63. b7 {[%clk 0:00:14]} 63... Qa5+ {[%clk
0:00:15.4]} 64. Kc4 {[%clk 0:00:13.1]} 64... Qxb4+ {[%clk 0:00:15.4]} 65. Kxb4
{[%clk 0:00:13.2]} 65... e1=Q+ {[%clk 0:00:15.1]} 66. Kb5 {[%clk 0:00:14.8]}
66... Qe5+ {[%clk 0:00:15.2]} 67. Kc6 {[%clk 0:00:15.9]} 67... g4 {[%clk
0:00:15.3]} 68. Kd7 {[%clk 0:00:13.4]} 68... g3 {[%clk 0:00:14.8]} 69. Kc8
{[%clk 0:00:15.3]} 69... g2 {[%clk 0:00:15]} 70. b8=B {[%clk 0:00:16]} 70...
Qxb8+ {[%clk 0:00:15.5]} 71. Kxb8 {[%clk 0:00:17.4]} 71... g1=Q {[%clk 0:00:15]}
72. Kc7 {[%clk 0:00:19.3]} 72... Qg6 {[%clk 0:00:15.4]} 0-1

[Event "*** MasterClass Titled Tuesday Blitz"]
[Site "Chess.com"]
[Date "2017.08.01"]
[Round "2"]
[White "matej2221"]
[Black "IMcoach"]
[Result "0-1"]
[WhiteElo "2293"]
[BlackElo "2322"]
[TimeControl "180+2"]
[EndTime "13:26:36 PDT"]
[Termination "IMcoach won by resignation"]

1. e4 {[%clk 0:03:01.9]} 1... g6 {[%clk 0:02:58.3]} 2. Nf3 {[%clk 0:03:00.3]}
2... Bg7 {[%clk 0:02:59.6]} 3. d4 {[%clk 0:03:00.3]} 3... d6 {[%clk 0:03:00.9]}
4. Nc3 {[%clk 0:02:58.2]} 4... Nc6 {[%clk 0:03:01.8]} 5. d5 {[%clk 0:02:43.1]}
5... Nb8 {[%clk 0:03:02.5]} 6. Be3 {[%clk 0:02:41.8]} 6... Nf6 {[%clk
0:03:03.6]} 7. Bd4 {[%clk 0:02:40.8]} 7... Nbd7 {[%clk 0:03:04.1]} 8. Be2 {[%clk
0:02:31.1]} 8... O-O {[%clk 0:03:01.3]} 9. O-O {[%clk 0:02:31.6]} 9... c6 {[%clk
0:02:58]} 10. dxc6 {[%clk 0:02:29.1]} 10... bxc6 {[%clk 0:02:58.8]} 11. e5
{[%clk 0:02:26.7]} 11... dxe5 {[%clk 0:02:52.2]} 12. Nxe5 {[%clk 0:02:27.6]}
12... Nxe5 {[%clk 0:02:52]} 13. Bxe5 {[%clk 0:02:28.1]} 13... Qb6 {[%clk
0:02:51.1]} 14. Bf3 {[%clk 0:02:05.8]} 14... Be6 {[%clk 0:02:46.8]} 15. Qe2
{[%clk 0:01:54.4]} 15... Rfd8 {[%clk 0:02:42]} 16. Rfd1 {[%clk 0:01:51]} 16...
Rac8 {[%clk 0:02:17.4]} 17. b3 {[%clk 0:01:31.4]} 17... c5 {[%clk 0:02:07.9]}
18. Na4 {[%clk 0:01:18.5]} 18... Qb4 {[%clk 0:01:57.1]} 19. c3 {[%clk
0:01:03.7]} 19... Qa5 {[%clk 0:01:52.8]} 20. c4 {[%clk 0:01:03.6]} 20... Nd7
{[%clk 0:01:28.1]} 21. Bxg7 {[%clk 0:00:53.7]} 21... Kxg7 {[%clk 0:01:30]} 22.
Bd5 {[%clk 0:00:49]} 22... Nf8 {[%clk 0:01:28.4]} 23. Qe5+ {[%clk 0:00:43.2]}
23... Kg8 {[%clk 0:01:27.8]} 24. Rd3 {[%clk 0:00:34.9]} 24... Rd6 {[%clk
0:01:25.6]} 25. Rad1 {[%clk 0:00:34.1]} 25... Qc7 {[%clk 0:01:15.5]} 26. f3
{[%clk 0:00:23.9]} 26... Rcd8 {[%clk 0:01:16]} 27. Be4 {[%clk 0:00:21.3]} 27...
Nd7 {[%clk 0:01:08.3]} 28. Qg3 {[%clk 0:00:20.4]} 28... Nb6 {[%clk 0:01:09.2]}
29. Rxd6 {[%clk 0:00:19.1]} 29... Rxd6 {[%clk 0:01:02]} 30. Rxd6 {[%clk
0:00:19.5]} 30... exd6 {[%clk 0:01:01.7]} 31. Nc3 {[%clk 0:00:19.4]} 31... a6
{[%clk 0:00:57.6]} 32. Kf2 {[%clk 0:00:18.1]} 32... Qe7 {[%clk 0:00:58.4]} 33.
Qf4 {[%clk 0:00:18.1]} 33... Kg7 {[%clk 0:00:58.8]} 34. Qd2 {[%clk 0:00:18.1]}
34... Qh4+ {[%clk 0:00:50.3]} 35. Kg1 {[%clk 0:00:19]} 35... Qe7 {[%clk
0:00:51.6]} 36. Kf2 {[%clk 0:00:19.3]} 36... Qh4+ {[%clk 0:00:52.2]} 37. Kg1
{[%clk 0:00:20.5]} 37... Qe7 {[%clk 0:00:52.6]} 38. Kf2 {[%clk 0:00:21.3]} 38...
h5 {[%clk 0:00:53.7]} 39. g3 {[%clk 0:00:20.6]} 39... h4 {[%clk 0:00:54.1]} 40.
Bd5 {[%clk 0:00:12.9]} 40... hxg3+ {[%clk 0:00:52.7]} 41. hxg3 {[%clk
0:00:13.6]} 41... Bf5 {[%clk 0:00:54]} 42. Be4 {[%clk 0:00:14]} 42... Be6 {[%clk
0:00:52.3]} 43. Ne2 {[%clk 0:00:13.9]} 43... Nd7 {[%clk 0:00:36.2]} 44. Qc3+
{[%clk 0:00:14.1]} 44... Kg8 {[%clk 0:00:36.5]} 45. Bb7 {[%clk 0:00:14.3]} 45...
Ne5 {[%clk 0:00:35.3]} 46. Bxa6 {[%clk 0:00:12.7]} 46... Qf6 {[%clk 0:00:36.4]}
47. Bb7 {[%clk 0:00:11.8]} 47... Ng4+ {[%clk 0:00:34.1]} 48. Kg2 {[%clk
0:00:11]} 48... Ne5 {[%clk 0:00:34.5]} 49. f4 {[%clk 0:00:10.7]} 49... Qe7
{[%clk 0:00:33.8]} 50. Be4 {[%clk 0:00:08.5]} 50... Ng4 {[%clk 0:00:34.3]} 51.
Bf3 {[%clk 0:00:08.6]} 51... Nf6 {[%clk 0:00:34.3]} 52. a4 {[%clk 0:00:09.3]}
52... d5 {[%clk 0:00:30.7]} 53. cxd5 {[%clk 0:00:09.1]} 53... Nxd5 {[%clk
0:00:31.9]} 54. Bxd5 {[%clk 0:00:09.8]} 54... Bxd5+ {[%clk 0:00:33]} 55. Kf2
{[%clk 0:00:11.1]} 55... Qe4 {[%clk 0:00:33.4]} 56. Qe3 {[%clk 0:00:10.6]} 56...
Qg2+ {[%clk 0:00:34.2]} 57. Ke1 {[%clk 0:00:12]} 57... Bf3 {[%clk 0:00:33.8]}
58. a5 {[%clk 0:00:10.2]} 58... Bxe2 {[%clk 0:00:31.1]} 59. Qxe2 {[%clk
0:00:11.4]} 59... Qxg3+ {[%clk 0:00:32.5]} 60. Kd1 {[%clk 0:00:12.5]} 60...
Qxb3+ {[%clk 0:00:33.9]} 61. Qc2 {[%clk 0:00:12]} 61... Qd5+ {[%clk 0:00:32.7]}
62. Kc1 {[%clk 0:00:12.2]} 62... Qd4 {[%clk 0:00:27.3]} 63. a6 {[%clk
0:00:09.8]} 63... Qxf4+ {[%clk 0:00:27.2]} 64. Kb2 {[%clk 0:00:08.7]} 64... Qb4+
{[%clk 0:00:24.7]} 65. Qb3 {[%clk 0:00:08.9]} 65... Qd2+ {[%clk 0:00:24.7]} 66.
Qc2 {[%clk 0:00:09.2]} 66... Qd4+ {[%clk 0:00:23.1]} 67. Qc3 {[%clk 0:00:09.4]}
67... Qf2+ {[%clk 0:00:22.7]} 68. Kb3 {[%clk 0:00:09.7]} 68... Qf6 {[%clk
0:00:22.6]} 69. Qa5 {[%clk 0:00:07.9]} 69... Qf3+ {[%clk 0:00:20.9]} 70. Kb2
{[%clk 0:00:08.2]} 70... Qe2+ {[%clk 0:00:20.1]} 71. Kb1 {[%clk 0:00:09.1]}
71... Qd3+ {[%clk 0:00:20.7]} 72. Kc1 {[%clk 0:00:09.4]} 72... Qe3+ {[%clk
0:00:18.2]} 73. Kb1 {[%clk 0:00:10.7]} 73... Qe1+ {[%clk 0:00:17.9]} 74. Kc2
{[%clk 0:00:11.3]} 74... Qxa5 {[%clk 0:00:18.7]} 0-1

[Event "*** MasterClass Titled Tuesday Blitz"]
[Site "Chess.com"]
[Date "2017.08.01"]
[Round "2"]
[White "GMMarcinDziuba"]
[Black "KNVB"]
[Result "1-0"]
[WhiteElo "2533"]
[BlackElo "2504"]
[TimeControl "180+2"]
[EndTime "13:27:42 PDT"]
[Termination "GMMarcinDziuba won on time"]

1. d4 {[%clk 0:03:01.9]} 1... Nf6 {[%clk 0:02:59.4]} 2. c4 {[%clk 0:03:02.7]}
2... e6 {[%clk 0:03:00.5]} 3. Nf3 {[%clk 0:03:01.2]} 3... b6 {[%clk 0:03:02]} 4.
g3 {[%clk 0:03:02.1]} 4... Ba6 {[%clk 0:03:02.9]} 5. b3 {[%clk 0:02:56.2]} 5...
Bb7 {[%clk 0:03:01.4]} 6. Bg2 {[%clk 0:02:57.1]} 6... Bb4+ {[%clk 0:03:02.6]} 7.
Bd2 {[%clk 0:02:53.7]} 7... c5 {[%clk 0:03:03.8]} 8. O-O {[%clk 0:02:51.8]} 8...
O-O {[%clk 0:02:46.1]} 9. d5 {[%clk 0:02:32.7]} 9... Bxd2 {[%clk 0:02:21.7]} 10.
Nfxd2 {[%clk 0:02:26.4]} 10... exd5 {[%clk 0:01:52.5]} 11. Nc3 {[%clk
0:02:26.3]} 11... d6 {[%clk 0:01:42.1]} 12. cxd5 {[%clk 0:02:18]} 12... Re8
{[%clk 0:01:40.4]} 13. Re1 {[%clk 0:02:05.5]} 13... Nbd7 {[%clk 0:01:29.9]} 14.
Qc2 {[%clk 0:02:05]} 14... a6 {[%clk 0:01:23.5]} 15. a4 {[%clk 0:02:05.1]} 15...
Qc7 {[%clk 0:01:18.4]} 16. e4 {[%clk 0:02:00.1]} 16... Re7 {[%clk 0:01:12.7]}
17. Nc4 {[%clk 0:01:36.6]} 17... Rae8 {[%clk 0:01:07.8]} 18. Qd2 {[%clk
0:01:32.5]} 18... Ne5 {[%clk 0:01:07.2]} 19. Ne3 {[%clk 0:01:33.4]} 19... Bc8
{[%clk 0:01:04.4]} 20. f4 {[%clk 0:01:32.4]} 20... Ng6 {[%clk 0:01:02.3]} 21.
Nc4 {[%clk 0:01:19.6]} 21... Qb8 {[%clk 0:00:50.6]} 22. h3 {[%clk 0:00:52.7]}
22... b5 {[%clk 0:00:42.5]} 23. axb5 {[%clk 0:00:53.3]} 23... axb5 {[%clk
0:00:44.4]} 24. Nxb5 {[%clk 0:00:49.9]} 24... Qxb5 {[%clk 0:00:42.9]} 25. Nxd6
{[%clk 0:00:50]} 25... Qxb3 {[%clk 0:00:36.1]} 26. Nxe8 {[%clk 0:00:51]} 26...
Rxe8 {[%clk 0:00:30]} 27. e5 {[%clk 0:00:52.2]} 27... Nh5 {[%clk 0:00:27.3]} 28.
Re3 {[%clk 0:00:52.6]} 28... Qb4 {[%clk 0:00:25.8]} 29. Qxb4 {[%clk 0:00:49.6]}
29... cxb4 {[%clk 0:00:27.7]} 30. Rb1 {[%clk 0:00:46.2]} 30... Nhxf4 {[%clk
0:00:04.9]} 31. gxf4 {[%clk 0:00:46.2]} 31... Nxf4 {[%clk 0:00:06.8]} 32. Rxb4
{[%clk 0:00:44.9]} 32... g5 {[%clk 0:00:08.7]} 33. Rb8 {[%clk 0:00:31]} 33...
Nxg2 {[%clk 0:00:09.4]} 34. Rc3 {[%clk 0:00:32.1]} 34... Rxe5 {[%clk 0:00:05.2]}
35. Rcxc8+ {[%clk 0:00:32]} 35... Kg7 {[%clk 0:00:06.6]} 36. Kxg2 {[%clk
0:00:32.6]} 36... Rxd5 {[%clk 0:00:08.2]} 37. Rb6 {[%clk 0:00:27]} 37... Rf5
{[%clk 0:00:08]} 38. Rc3 {[%clk 0:00:27]} 38... Re5 {[%clk 0:00:06.8]} 39. Rf3
{[%clk 0:00:26.7]} 39... Re7 {[%clk 0:00:06.9]} 40. Kg3 {[%clk 0:00:28]} 40...
h6 {[%clk 0:00:07.8]} 41. h4 {[%clk 0:00:29.5]} 41... Rd7 {[%clk 0:00:07.5]} 42.
hxg5 {[%clk 0:00:23.8]} 42... hxg5 {[%clk 0:00:09.4]} 43. Rf5 {[%clk 0:00:25]}
43... Rd3+ {[%clk 0:00:07.2]} 44. Kg4 {[%clk 0:00:23.1]} 44... Rd4+ {[%clk
0:00:04]} 45. Kxg5 {[%clk 0:00:23.2]} 45... Rd1 {[%clk 0:00:05.3]} 46. Kf4
{[%clk 0:00:22.4]} 46... Rf1+ {[%clk 0:00:06]} 47. Ke4 {[%clk 0:00:23.6]} 47...
Re1+ {[%clk 0:00:07.4]} 48. Kd3 {[%clk 0:00:25.1]} 48... Rd1+ {[%clk 0:00:08.5]}
49. Ke2 {[%clk 0:00:26]} 49... Rd7 {[%clk 0:00:10]} 50. Rb4 {[%clk 0:00:26.7]}
50... f6 {[%clk 0:00:10.2]} 51. Rbf4 {[%clk 0:00:27.4]} 51... Rd6 {[%clk
0:00:11.4]} 52. Kf2 {[%clk 0:00:28.5]} 52... Kg6 {[%clk 0:00:12.9]} 53. Kg3
{[%clk 0:00:29.5]} 53... Ra6 {[%clk 0:00:13.7]} 54. Rf3 {[%clk 0:00:30.3]} 54...
Rb6 {[%clk 0:00:15]} 55. R5f4 {[%clk 0:00:31.5]} 55... Ra6 {[%clk 0:00:16.2]}
56. Rg4+ {[%clk 0:00:32.7]} 56... Kf7 {[%clk 0:00:17.8]} 57. Rc4 {[%clk
0:00:32.9]} 57... Kg6 {[%clk 0:00:17.7]} 58. Rfc3 {[%clk 0:00:34]} 58... Ra1
{[%clk 0:00:16.5]} 59. Rc6 {[%clk 0:00:33.8]} 59... Rg1+ {[%clk 0:00:17.5]} 60.
Kf2 {[%clk 0:00:34.9]} 60... Rh1 {[%clk 0:00:10.6]} 61. Rf3 {[%clk 0:00:35.8]}
61... Rh2+ {[%clk 0:00:12.1]} 62. Kg3 {[%clk 0:00:37.1]} 62... Ra2 {[%clk
0:00:13.3]} 63. Rfxf6+ {[%clk 0:00:37.9]} 63... Kg5 {[%clk 0:00:14.2]} 64. Rf3
{[%clk 0:00:36.4]} 64... Ra5 {[%clk 0:00:14.7]} 65. Rcc3 {[%clk 0:00:36.4]}
65... Rb5 {[%clk 0:00:15.8]} 66. Rf2 {[%clk 0:00:37.2]} 66... Kg6 {[%clk
0:00:15.7]} 67. Rfc2 {[%clk 0:00:38.1]} 67... Rg5+ {[%clk 0:00:16.3]} 68. Kf2
{[%clk 0:00:38.3]} 68... Rf5+ {[%clk 0:00:17.5]} 69. Ke3 {[%clk 0:00:39.7]}
69... Re5+ {[%clk 0:00:19]} 70. Kd4 {[%clk 0:00:41.1]} 70... Re1 {[%clk
0:00:18.4]} 71. Rf2 {[%clk 0:00:39.6]} 71... Rd1+ {[%clk 0:00:19.2]} 72. Ke4
{[%clk 0:00:40.7]} 72... Re1+ {[%clk 0:00:19.6]} 73. Re3 {[%clk 0:00:41.7]}
73... Rg1 {[%clk 0:00:20]} 74. Ree2 {[%clk 0:00:40.6]} 74... Ra1 {[%clk
0:00:21.1]} 75. Kd3 {[%clk 0:00:40.7]} 75... Ra3+ {[%clk 0:00:20.8]} 76. Ke4
{[%clk 0:00:40.3]} 76... Ra4+ {[%clk 0:00:21.2]} 77. Kf3 {[%clk 0:00:41.7]}
77... Kf5 {[%clk 0:00:21.4]} 78. Kg2+ {[%clk 0:00:42.7]} 78... Kg4 {[%clk
0:00:22.6]} 79. Re3 {[%clk 0:00:43.8]} 79... Kh4 {[%clk 0:00:18.4]} 80. Rg3
{[%clk 0:00:44.3]} 80... Ra1 {[%clk 0:00:17]} 81. Rg8 {[%clk 0:00:44.4]} 81...
Kh5 {[%clk 0:00:07.7]} 82. Rf5+ {[%clk 0:00:38.7]} 82... Kh6 {[%clk 0:00:07.9]}
83. Rf1 {[%clk 0:00:39.5]} 83... Ra2+ {[%clk 0:00:08.4]} 84. Kf3 {[%clk
0:00:40.6]} 84... Ra3+ {[%clk 0:00:06.6]} 85. Ke4 {[%clk 0:00:41.1]} 85... Ra4+
{[%clk 0:00:07.1]} 86. Kd3 {[%clk 0:00:41.5]} 86... Kh7 {[%clk 0:00:08.1]} 87.
Rg2 {[%clk 0:00:39.7]} 87... Ra3+ {[%clk 0:00:09.5]} 88. Ke4 {[%clk 0:00:40]}
88... Rh3 {[%clk 0:00:10.5]} 89. Kf4 {[%clk 0:00:39.3]} 89... Kh6 {[%clk
0:00:04.3]} 90. Rf3 {[%clk 0:00:36.5]} 90... Rh1 {[%clk 0:00:03.5]} 91. Ke3
{[%clk 0:00:37.8]} 91... Rh4 {[%clk 0:00:03.8]} 92. Kf2 {[%clk 0:00:29.5]} 92...
Kh7 {[%clk 0:00:02.4]} 93. Kg1 {[%clk 0:00:30.4]} 93... Rh6 {[%clk 0:00:03.2]}
94. Rh2 {[%clk 0:00:31.5]} 94... Kg7 {[%clk 0:00:04.2]} 95. Rxh6 {[%clk
0:00:32.1]} 1-0

[Event "*** MasterClass Titled Tuesday Blitz"]
[Site "Chess.com"]
[Date "2017.08.01"]
[Round "3"]
[White "gui_borba"]
[Black "stepanosinovsky"]
[Result "0-1"]
[WhiteElo "2119"]
[BlackElo "2293"]
[TimeControl "180+2"]
[EndTime "13:32:00 PDT"]
[Termination "stepanosinovsky won by resignation"]

1. Nf3 {[%clk 0:03:01.9]} 1... Nf6 {[%clk 0:03:00.3]} 2. b3 {[%clk 0:03:01.3]}
2... g6 {[%clk 0:03:02.2]} 3. Bb2 {[%clk 0:03:02.3]} 3... Bg7 {[%clk 0:03:04.1]}
4. e3 {[%clk 0:03:03.7]} 4... O-O {[%clk 0:03:04.6]} 5. d4 {[%clk 0:03:02.2]}
5... d6 {[%clk 0:03:05.4]} 6. c4 {[%clk 0:03:02.6]} 6... Nbd7 {[%clk 0:03:05.9]}
7. Be2 {[%clk 0:03:03.8]} 7... e5 {[%clk 0:03:07.2]} 8. dxe5 {[%clk 0:03:03.6]}
8... Ng4 {[%clk 0:03:06.8]} 9. O-O {[%clk 0:03:04]} 9... Ngxe5 {[%clk
0:02:59.1]} 10. Nxe5 {[%clk 0:03:02.6]} 10... Nxe5 {[%clk 0:02:51.1]} 11. Nc3
{[%clk 0:03:03.7]} 11... Re8 {[%clk 0:02:51.2]} 12. Qd2 {[%clk 0:03:04.5]} 12...
a5 {[%clk 0:02:27.7]} 13. Rfe1 {[%clk 0:02:59.4]} 13... Be6 {[%clk 0:02:07.2]}
14. Rad1 {[%clk 0:02:56]} 14... Qh4 {[%clk 0:02:05.1]} 15. g3 {[%clk 0:02:52.4]}
15... Qh3 {[%clk 0:02:02.5]} 16. Bf1 {[%clk 0:02:41.5]} 16... Nf3+ {[%clk
0:02:02.3]} 0-1